bitfinex/quotes_ETHUSD_20251201
["timestamp","ask_amount","ask_price","bid_price","bid_amount"]
[1764573102294,0.224,2829.3,2828.5,7.53416085]
[1764573102449,0.224,2829.3,2828.6,1.25084728]
[1764573102654,0.224,2829.3,2828.7,7.07038568]
[1764573102895,0.4915,2829.3,2828.8,0.03535067]
[1764573104457,0.4915,2829.3,2828.9,3.53494291]
[1764573104659,0.4915,2829.3,2829.0,0.03534817]
[1764573105298,0.2723,2829.1,2829.0,0.03534817]
[1764573105590,0.2723,2829.1,2828.8,3.53502454]
[1764573105794,0.4686,2828.9,2828.8,3.53502454]
[1764573106097,0.4686,2828.9,2828.7,7.07032539]
[1764573106588,0.0029,2828.8,2828.7,3.53513255]
[1764573107161,0.4915,2829.1,2828.7,7.07032539]
[1764573107604,0.468,2828.8,2828.5,0.001]
[1764573107790,0.2723,2828.6,2828.5,0.001]
[1764573107977,0.7616,2828.6,2828.5,0.001]
[1764573108502,0.224,2828.9,2828.5,3.99874281]
[1764573108997,0.2723,2828.6,2828.5,3.53644281]
[1764573110596,0.2723,2828.6,2828.5,0.001]
[1764573113790,0.7461,2828.6,2828.5,0.001]
[1764573114477,3.75897799,2828.9,2828.5,0.001]
[1764573114789,0.2898,2828.6,2828.5,0.001]
[1764573115182,0.7617,2828.6,2828.5,0.001]
[1764573116065,0.2898,2828.6,2828.5,0.001]
[1764573117077,0.7617,2828.6,2828.5,0.001]
[1764573117495,0.7637,2828.6,2828.5,0.001]
[1764573118006,4.29901782,2828.6,2828.5,0.001]
[1764573118209,5.08243458,2828.6,2828.5,0.001]
[1764573121210,5.80802869,2828.6,2828.5,0.001]
[1764573126200,1.24139411,2828.6,2828.5,0.001]
[1764573126982,4.77671193,2828.6,2828.5,0.001]
[1764573127183,5.24861193,2828.6,2828.5,0.001]
[1764573130589,5.02461193,2828.6,2828.5,0.001]
[1764573130789,5.24861193,2828.6,2828.5,0.001]
[1764573132094,5.65411593,2828.6,2828.5,0.001]
[1764573132924,5.43011593,2828.6,2828.5,0.001]
[1764573133101,5.24861193,2828.6,2828.5,0.001]
[1764573135223,0.2918,2828.6,2828.5,0.001]
[1764573135398,0.5158,2828.6,2828.5,0.001]
[1764573138026,0.2918,2828.6,2828.5,0.001]
[1764573138326,0.5158,2828.6,2828.5,0.001]
[1764573139608,11.09670823,2828.6,2828.5,0.001]
[1764573140004,7.56139041,2828.6,2828.5,0.001]
[1764573140730,7.08949041,2828.6,2828.5,0.001]
[1764573141402,0.5158,2828.6,2828.5,0.001]
[1764573142710,0.002,2828.6,2828.5,0.4733]
[1764573142999,0.226,2828.6,2828.5,0.4733]
[1764573144430,0.226,2828.6,2828.5,0.001]
[1764573144724,0.4948,2828.6,2828.5,0.001]
[1764573145802,7.56119041,2828.6,2828.5,0.001]
[1764573146629,11.09650823,2828.6,2828.5,0.001]
[1764573147530,7.56119041,2828.6,2828.5,0.001]
[1764573148027,0.2708,2828.6,2828.5,0.4859]
[1764573148234,0.226,2828.6,2828.5,0.4859]
[1764573149431,0.5052,2828.6,2828.5,0.001]
[1764573149615,12.95615902,2828.6,2828.5,0.001]
[1764573149932,6.38246861,2828.6,2828.5,0.001]
[1764573151134,6.78797261,2828.6,2828.5,0.001]
[1764573152730,6.56397261,2828.6,2828.5,0.001]
[1764573153036,6.78797261,2828.6,2828.5,0.001]
[1764573161112,6.76797261,2828.6,2828.5,0.001]
[1764573161943,6.54397261,2828.6,2828.5,0.001]
[1764573162122,6.76797261,2828.6,2828.5,0.001]
[1764573164845,6.06157261,2828.6,2828.5,0.001]
[1764573165046,6.76797261,2828.6,2828.5,0.001]
[1764573169045,6.76997261,2828.6,2828.5,0.001]
[1764573174946,24.22177761,2828.6,2828.5,0.001]
[1764573175254,18.70959272,2828.6,2828.5,0.001]
[1764573175549,12.77213472,2828.6,2828.5,0.001]
[1764573175948,16.84711372,2828.6,2828.5,0.001]
[1764573176552,7.25565072,2828.6,2828.5,0.001]
[1764573176754,13.48745072,2828.6,2828.5,0.001]
[1764573177133,14.72440841,2828.6,2828.5,0.001]
[1764573177335,13.49674741,2828.6,2828.5,0.001]
[1764573178054,15.27794241,2828.6,2828.5,0.001]
[1764573178234,14.21894241,2828.6,2828.5,0.001]
[1764573179021,7.39739341,2828.6,2828.5,0.001]
[1764573179340,9.2764893,2828.6,2828.5,0.001]
[1764573180250,6.9117153,2828.6,2828.5,0.001]
[1764573180554,6.4293153,2828.6,2828.5,0.001]
[1764573180751,8.6014763,2828.6,2828.5,0.001]
[1764573181058,9.0775763,2828.6,2828.5,0.001]
[1764573181355,9.4320173,2828.6,2828.5,0.001]
[1764573181555,1.18109811,2828.5,2828.2,0.001]
[1764573181853,11.98534952,2828.3,2828.2,0.001]
[1764573182029,11.55200752,2828.3,2828.2,0.001]
[1764573182228,17.24468352,2828.3,2828.2,0.001]
[1764573183261,21.39705433,2828.3,2828.2,0.001]
[1764573183549,22.53101101,2828.3,2828.2,0.001]
[1764573183751,19.41127901,2828.3,2828.2,0.001]
[1764573183931,16.77560501,2828.3,2828.2,0.001]
[1764573184458,18.07793301,2828.3,2828.2,0.001]
[1764573185658,18.2196978,2828.3,2828.2,0.001]
[1764573186755,3.6774576,2828.3,2828.2,0.9321]
[1764573187056,3.9014576,2828.3,2828.2,0.9321]
[1764573187359,3.75969281,2828.3,2828.2,0.9321]
[1764573187526,4.48528692,2828.3,2828.2,0.9321]
[1764573189760,5.14259092,2828.3,2828.2,0.001]
[1764573189960,5.61639092,2828.3,2828.2,0.001]
[1764573190355,5.14259092,2828.3,2828.2,0.001]
[1764573190856,4.89079092,2828.3,2828.2,0.4716]
[1764573192062,5.36239092,2828.3,2828.2,0.4716]
[1764573193661,4.73288692,2828.3,2828.2,0.9321]
[1764573193960,4.95688692,2828.3,2828.2,0.4716]
[1764573195862,4.95688692,2828.3,2828.2,0.9321]
[1764573197360,4.94981479,2828.3,2828.2,0.9321]
[1764573199540,4.22422068,2828.3,2828.2,0.9321]
[1764573200538,4.00022068,2828.3,2828.2,0.9321]
[1764573200738,4.22422068,2828.3,2828.2,0.9321]
[1764573201866,3.53733182,2828.6,2828.2,0.9321]
[1764573201867,0.002,2828.6,2828.2,0.9321]
[1764573202041,0.002,2828.6,2828.3,0.4605]
[1764573202042,0.72559411,2828.4,2828.3,0.4605]
[1764573202237,0.72759411,2828.4,2828.3,0.4605]
[1764573202459,4.26316192,2828.4,2828.3,0.9311]
[1764573202641,0.72759411,2828.4,2828.3,0.9311]
[1764573202842,4.26316192,2828.4,2828.3,0.9311]
[1764573204857,5.19426192,2828.4,2828.3,0.9311]
[1764573206467,5.19426192,2828.4,2828.3,0.4706]
[1764573206667,8.99352973,2828.4,2828.2,0.001]
[1764573206972,7.08695267,2828.3,2828.2,0.001]
[1764573207153,6.81385267,2828.3,2828.2,0.001]
[1764573207348,7.79872973,2828.4,2828.2,0.4899]
[1764573207742,0.14174118,2828.3,2828.2,0.4899]
[1764573207938,0.14174118,2828.3,2828.2,0.001]
[1764573208238,0.14174118,2828.3,2828.2,0.4899]
[1764573208970,3.90143399,2828.3,2828.2,0.4899]
[1764573210368,4.16513399,2828.3,2828.2,0.001]
[1764573210561,4.64503399,2828.3,2828.2,0.001]
[1764573210873,4.16513399,2828.3,2828.2,0.001]
[1764573211876,3.90143399,2828.3,2828.2,0.001]
[1764573213493,0.36574118,2828.3,2828.2,0.974]
[1764573214300,3.90143399,2828.3,2828.2,0.974]
[1764573216673,0.72759411,2828.4,2828.2,0.974]
[1764573216884,0.224,2828.3,2828.2,0.001]
[1764573217387,0.224,2828.3,2828.2,0.974]
[1764573218680,3.75969281,2828.3,2828.2,0.974]
[1764573220091,0.224,2828.3,2828.2,0.974]
[1764573220399,0.226,2828.3,2828.2,0.974]
[1764573221081,3.76169281,2828.3,2828.2,0.974]
[1764573221281,0.226,2828.3,2828.2,0.974]
[1764573222391,0.002,2828.3,2828.2,0.974]
[1764573223904,0.002,2828.3,2828.2,4.98051441]
[1764573224673,0.002,2828.3,2828.2,5.12220889]
[1764573227481,0.002,2828.3,2828.2,5.15756706]
[1764573233798,0.002,2828.3,2828.2,5.01587258]
[1764573234390,0.002,2828.3,2828.2,5.15756104]
[1764573235521,0.002,2828.3,2828.2,5.88315515]
[1764573237402,0.002,2828.3,2828.2,5.74146669]
[1764573237604,0.002,2828.3,2828.2,6.28863958]
[1764573241129,0.002,2828.3,2828.2,6.25328141]
[1764573241998,0.002,2828.3,2828.2,12.59453408]
[1764573242842,0.002,2828.3,2828.2,12.81853408]
[1764573243996,0.002,2828.3,2828.2,12.59453408]
[1764573244195,0.002,2828.3,2828.2,12.81853408]
[1764573244814,0.002,2828.6,2828.4,0.405504]
[1764573245004,0.002,2828.6,2828.5,7.9905052]
[1764573245321,0.002,2828.6,2828.5,7.95515078]
[1764573245494,0.002,2828.6,2828.5,8.57389709]
[1764573245898,0.002,2828.6,2828.5,12.1093399]
[1764573246194,0.002,2828.6,2828.5,13.83934301]
[1764573251513,0.0015,2829.2,2828.6,1.61389811]
[1764573251709,0.0015,2829.2,2829.1,6.82405267]
[1764573251905,0.67186132,2829.9,2829.1,7.04805267]
[1764573252110,0.67186132,2829.9,2829.2,1.21725095]
[1764573252713,0.4955,2829.8,2829.3,10.60332942]
[1764573253010,0.4955,2829.8,2829.4,0.03534318]
[1764573255004,0.002,2829.9,2829.7,0.4828]
[1764573255331,0.002,2829.9,2829.8,6.82405267]
[1764573255504,0.002,2829.9,2829.8,7.57901735]
[1764573255704,0.002,2829.9,2829.8,8.05611735]
[1764573257340,0.002,2829.9,2829.8,11.58993599]
[1764573257526,0.002,2829.9,2829.8,12.3155301]
[1764573260408,0.002,2829.9,2829.8,12.53835606]
[1764573262837,0.428,2829.9,2829.8,3.53381864]
[1764573263015,0.8899,2829.9,2829.8,3.75781864]
[1764573263935,0.8899,2829.9,2829.8,10.32189727]
[1764573264141,0.428,2829.9,2829.8,10.32189727]
[1764573265741,0.9191,2829.9,2829.8,10.32189727]
[1764573266537,0.2455,2829.9,2829.8,10.32189727]
[1764573266739,0.2455,2829.9,2829.8,10.09789727]
[1764573266912,0.2455,2829.9,2829.8,10.32189727]
[1764573270312,0.2455,2829.9,2829.8,10.09889727]
[1764573270517,0.2455,2829.9,2829.8,10.32289727]
[1764573271443,0.002,2829.9,2829.8,11.26823475]
[1764573271943,0.002,2829.9,2829.8,11.72263475]
[1764573272243,0.002,2829.9,2829.8,11.26823475]
[1764573273449,0.002,2829.9,2829.8,18.28671338]
[1764573273620,0.002,2829.9,2829.8,11.72263475]
[1764573274246,0.002,2829.9,2829.8,12.44822886]
[1764573274450,0.002,2830.2,2829.9,0.891504]
[1764573274639,0.002,2830.2,2830.1,14.89155537]
[1764573274849,0.002,2830.2,2830.1,18.42499941]
[1764573275149,0.002,2830.2,2830.1,19.55179941]
[1764573275722,0.002,2830.2,2830.1,12.58221678]
[1764573275951,0.002,2830.2,2830.1,14.77752942]
[1764573276157,0.002,2830.2,2830.1,21.34160805]
[1764573278751,0.002,2830.2,2830.1,14.32312942]
[1764573278944,0.002,2830.2,2830.1,14.54712942]
[1764573279145,0.002,2830.2,2830.1,15.00152942]
[1764573279556,0.002,2830.2,2830.1,18.82152941]
[1764573279764,0.002,2830.2,2830.1,25.38560804]
[1764573280659,0.002,2830.2,2830.1,17.81532541]
[1764573280827,0.002,2830.2,2830.1,17.59132541]
[1764573281022,0.002,2830.2,2830.1,7.35344403]
[1764573281023,0.7357,2830.2,2830.1,7.35344403]
[1764573281856,0.2471,2830.2,2830.1,13.91752266]
[1764573282931,0.7357,2830.2,2830.1,13.91752266]
[1764573285144,0.7357,2830.2,2830.1,7.35344403]
[1764573285670,0.7357,2830.2,2830.1,3.53344404]
[1764573287068,0.002,2830.2,2830.1,12.53513127]
[1764573287238,0.2471,2830.2,2830.1,10.09752267]
[1764573287582,0.7357,2830.2,2829.9,7.0673816]
[1764573287738,0.7357,2830.2,2829.9,3.53368783]
[1764573287739,0.2427,2830.0,2829.9,3.53368783]
[1764573288240,0.7337,2830.0,2829.9,3.53368783]
[1764573288944,0.7337,2830.0,2829.8,0.001]
[1764573289248,0.4931,2830.2,2829.9,6.56407863]
[1764573289459,0.4911,2830.1,2829.9,6.56407863]
[1764573289660,0.2451,2830.0,2829.8,3.53481864]
[1764573289971,0.2451,2829.9,2829.8,3.57015682]
[1764573290543,0.9263,2829.9,2829.8,0.001]
[1764573290749,0.405504,2829.8,2829.5,0.001]
[1764573290957,6.56797863,2829.6,2829.5,0.001]
[1764573291146,0.0039,2829.6,2829.5,0.001]
[1764573291337,0.495,2829.6,2829.5,0.001]
[1764573291756,0.719,2829.6,2829.5,0.001]
[1764573292163,4.25306841,2829.6,2829.5,0.001]
[1764573292360,5.09959722,2829.6,2829.5,0.001]
[1764573293949,4.87559722,2829.6,2829.5,0.001]
[1764573294156,5.09959722,2829.6,2829.5,0.001]
[1764573297481,5.09959722,2829.6,2828.6,0.51437317]
[1764573297690,0.2403,2829.3,2828.6,0.4832]
[1764573297884,0.2403,2829.3,2828.6,0.51855317]
[1764573298254,0.2403,2829.3,2828.7,7.07038568]
[1764573298453,0.2403,2829.3,2828.8,0.03535067]
[1764573298662,0.2403,2829.3,2828.8,0.51855067]
[1764573299387,0.2403,2829.3,2828.8,1.63096359]
[1764573299555,0.2403,2829.3,2828.9,0.4832]
[1764573299754,0.2403,2829.3,2829.0,0.03534817]
[1764573300171,0.2403,2829.3,2829.0,0.51854817]
[1764573300372,0.2403,2829.3,2829.1,3.53469301]
[1764573301085,0.2403,2829.3,2829.1,7.06938602]
[1764573301287,0.5013,2829.2,2828.8,1.11241292]
[1764573301598,0.4964,2829.2,2828.9,3.53488166]
[1764573301801,0.4964,2829.2,2828.8,3.53500491]
[1764573301958,0.2389,2828.8,2828.6,3.53531782]
[1764573302791,0.2378,2828.7,2828.5,7.07076725]
[1764573303005,0.1903,2828.9,2828.5,7.07076725]
[1764573303174,0.6867,2828.9,2828.5,7.07076725]
[1764573303487,0.7204,2829.4,2828.8,0.4714]
[1764573303686,0.7204,2829.4,2828.9,0.03534942]
[1764573304073,0.224,2829.4,2829.0,0.001]
[1764573304272,0.4964,2829.3,2829.0,3.53581795]
[1764573305594,0.2378,2829.1,2829.0,3.53581795]
[1764573306026,0.2378,2829.1,2829.0,0.001]
[1764573306294,0.7316,2829.1,2829.0,0.001]
[1764573306496,4.69291031,2829.1,2829.0,0.001]
[1764573306692,5.41850442,2829.1,2829.0,0.001]
[1764573307571,5.64250442,2829.1,2829.0,0.001]
[1764573314507,1.13109811,2829.0,2828.8,0.001]
[1764573314715,16.823552,2828.8,2828.5,0.001]
[1764573314873,37.93784298,2828.6,2828.2,0.001]
[1764573315079,12.89152098,2828.3,2828.2,0.001]
[1764573315387,7.76023898,2828.3,2828.2,0.001]
[1764573315587,8.68065628,2828.3,2828.2,0.001]
[1764573316997,12.21634909,2828.3,2828.2,0.001]
[1764573318084,11.99234909,2828.3,2828.2,0.001]
[1764573318311,12.21634909,2828.3,2828.2,0.001]
[1764573318511,0.2369,2828.3,2828.2,0.001]
[1764573318715,0.14175776,2828.5,2828.2,0.4724]
[1764573318887,0.224,2828.6,2828.4,4.00688463]
[1764573319284,0.224,2828.6,2828.2,4.01990759]
[1764573319285,0.2369,2828.5,2828.2,4.01990759]
[1764573319498,0.2369,2828.5,2828.2,3.53670759]
[1764573319816,0.2369,2828.5,2828.2,4.31066726]
[1764573320716,0.2369,2828.5,2828.2,0.77495967]
[1764573321016,0.2369,2828.5,2828.2,3.53680026]
[1764573321483,0.2369,2828.5,2828.2,7.07261809]
[1764573321687,0.224,2828.7,2828.4,0.4714]
[1764573323922,0.7179,2828.7,2828.4,0.4714]
[1764573324123,0.224,2828.7,2828.4,0.4714]
[1764573324421,0.224,2828.7,2828.4,4.0069675]
[1764573325520,4.94477773,2828.9,2828.4,4.0069675]
[1764573325724,0.224,2828.7,2828.4,4.0069675]
[1764573326493,3.72528362,2828.9,2828.4,4.0069675]
[1764573326708,0.224,2828.7,2828.4,4.4794675]
[1764573327591,0.224,2828.7,2828.6,0.4651]
[1764573328144,0.4937,2828.7,2828.4,3.5355675]
[1764573330648,0.224,2828.7,2828.6,0.4651]
[1764573330834,0.224,2828.7,2828.4,0.4725]
[1764573331020,0.224,2828.7,2828.4,1.22698856]
[1764573331820,0.224,2828.7,2828.6,0.4651]
[1764573332299,0.224,2828.8,2828.6,0.4651]
[1764573334641,0.224,2828.8,2828.6,4.00040195]
[1764573335008,0.224,2828.9,2828.7,0.9376]
[1764573335429,0.224,2828.9,2828.8,0.4651]
[1764573335942,3.72087512,2829.2,2828.8,0.4651]
[1764573336241,3.72087512,2829.2,2828.7,0.4725]
[1764573336242,0.2697,2828.9,2828.2,0.001]
[1764573336538,0.2697,2828.3,2828.2,0.001]
[1764573340448,0.25564529,2828.3,2828.2,0.001]
[1764573344384,0.72084529,2828.3,2828.2,0.001]
[1764573346064,0.25564529,2828.3,2828.2,0.001]
[1764573346674,0.72084529,2828.3,2828.2,0.001]
[1764573347875,0.25564529,2828.3,2828.2,0.001]
[1764573348194,5.01161391,2828.3,2828.2,0.001]
[1764573348472,4.2565381,2828.3,2828.2,0.001]
[1764573350879,3.53569281,2828.3,2828.2,0.001]
[1764573351262,3.79339281,2828.3,2828.2,0.001]
[1764573351775,4.25649281,2828.3,2828.2,0.001]
[1764573352087,5.05809948,2828.3,2828.2,0.001]
[1764573352453,5.28209948,2828.3,2828.2,0.001]
[1764573353675,5.05809948,2828.3,2828.2,0.001]
[1764573354070,5.28209948,2828.3,2828.2,0.001]
[1764573354379,6.91705697,2828.3,2828.2,0.001]
[1764573354695,8.75445959,2828.3,2828.2,0.001]
[1764573355394,6.41319759,2828.3,2828.2,0.001]
[1764573356481,6.37783692,2828.3,2828.2,0.001]
[1764573356690,6.37983692,2828.3,2828.2,0.001]
[1764573358958,6.52159618,2828.3,2828.2,0.001]
[1764573360989,17.22837118,2828.3,2828.2,0.001]
[1764573361289,13.42209218,2828.3,2828.2,0.001]
[1764573362282,13.18621118,2828.3,2828.2,0.001]
[1764573362488,19.53002437,2828.3,2828.2,0.001]
[1764573363362,12.86540937,2828.3,2828.2,0.001]
[1764573363681,14.98633737,2828.3,2828.2,0.001]
[1764573364291,12.86540937,2828.3,2828.2,0.001]
[1764573364514,15.72151737,2828.3,2828.2,0.001]
[1764573365086,5.65299218,2828.3,2828.2,0.001]
[1764573365290,5.51123292,2828.3,2828.2,0.001]
[1764573366904,5.96963292,2828.3,2828.2,0.001]
[1764573368115,12.31344611,2828.3,2828.2,0.001]
[1764573369699,33.6583496,2828.3,2828.2,0.001]
[1764573369899,27.9850556,2828.3,2828.2,0.001]
[1764573370201,28.12681888,2828.3,2828.2,0.001]
[1764573373409,15.35043339,2828.3,2828.2,0.001]
[1764573378285,4.04959942,2828.3,2828.2,0.4779]
[1764573378607,3.72633214,2828.3,2828.2,0.973]
[1764573378805,4.45192625,2828.3,2828.2,0.4779]
[1764573381787,3.72633214,2828.3,2828.2,0.973]
[1764573382586,0.002,2828.3,2828.2,0.973]
[1764573382790,0.002,2828.3,2828.2,1.44228734]
[1764573382988,0.002,2828.3,2828.2,4.97810517]
[1764573383267,0.002,2828.3,2828.2,1.44228734]
[1764573383901,0.002,2828.3,2828.2,0.973]
[1764573384899,0.002,2828.3,2828.2,4.50881783]
[1764573385607,0.002,2828.8,2828.2,4.50881783]
[1764573385608,0.002,2828.8,2828.3,0.72559411]
[1764573385800,0.002,2828.9,2828.7,13.6266566]
[1764573386093,0.002,2829.6,2829.0,0.4771]
[1764573386290,0.002,2829.6,2829.2,0.6487]
[1764573386518,0.002,2829.6,2829.2,1.49107724]
[1764573386823,0.002,2829.6,2829.2,1.1234]
[1764573387539,0.002,2829.6,2829.2,4.65796807]
[1764573394814,0.002,2829.6,2829.3,2.08289811]
[1764573395138,0.002,2829.9,2829.7,7.06788704]
[1764573395436,0.002,2829.9,2829.8,2.93856644]
[1764573395611,0.002,2829.9,2829.8,3.41326644]
[1764573397234,0.002,2829.9,2829.8,6.94708508]
[1764573398414,0.002,2829.9,2829.8,0.4771]
[1764573398616,0.4724,2829.9,2829.3,0.4747]
[1764573399144,0.002,2829.9,2829.8,0.4771]
[1764573399344,0.002,2829.9,2829.4,3.53427759]
[1764573399545,0.002,2829.9,2829.5,0.87559776]
[1764573399842,0.002,2829.9,2829.6,0.03534068]
[1764573400045,0.002,2829.9,2829.6,0.4747]
[1764573401636,0.002,2829.9,2829.8,0.4771]
[1764573402352,0.002,2829.9,2829.8,0.9518]
[1764573402740,0.002,2829.9,2829.8,1.7537861]
[1764573403956,0.002,2829.9,2829.8,5.28760474]
[1764573404330,0.002,2829.9,2829.8,5.32294292]
[1764573406343,0.002,2829.9,2829.8,5.28760474]
[1764573406562,0.002,2829.9,2829.8,5.32294292]
[1764573406930,0.002,2829.9,2829.8,5.28760474]
[1764573407429,0.002,2829.9,2829.8,5.32294292]
[1764573408031,0.002,2829.9,2829.8,4.81290474]
[1764573408233,0.002,2829.9,2829.4,8.19244298]
[1764573408234,0.932,2829.9,2829.3,0.4747]
[1764573408539,0.932,2829.9,2829.1,3.53560989]
[1764573408540,0.0047,2829.8,2829.1,3.53560989]
[1764573408734,0.4812,2829.8,2829.1,7.0703029]
[1764573408946,0.4812,2829.8,2829.1,8.04100319]
[1764573409767,0.4812,2829.8,2829.1,0.77790029]
[1764573410061,0.2585,2829.2,2829.1,0.001]
[1764573414071,3.75698603,2829.7,2829.1,0.001]
[1764573414072,3.75698603,2829.7,2829.1,0.6869]
[1764573414379,3.75698603,2829.7,2829.1,1.1428]
[1764573415033,4.24108603,2829.7,2829.1,1.1428]
[1764573415233,0.4841,2829.6,2829.1,0.493]
[1764573416172,4.0182353,2829.6,2829.1,0.493]
[1764573416636,0.4841,2829.5,2829.1,0.493]
[1764573417966,0.4841,2829.5,2829.1,4.02768441]
[1764573418683,4.01829462,2829.5,2829.1,0.493]
[1764573419964,0.8694901,2829.7,2829.2,0.4559]
[1764573420186,0.4841,2829.6,2829.1,4.22159046]
[1764573420361,0.4841,2829.6,2829.1,7.7916304]
[1764573420562,0.4841,2829.6,2829.1,8.21218347]
[1764573422186,0.1944,2829.9,2829.5,0.492]
[1764573422371,3.95110602,2829.9,2829.5,0.492]
[1764573422571,0.4435206,2829.8,2829.5,4.02617944]
[1764573422775,0.9015,2829.9,2829.5,4.02617944]
[1764573423594,0.002,2829.8,2829.5,4.02617944]
[1764573425013,0.002,2829.8,2829.5,0.492]
[1764573426482,0.4861,2829.8,2829.5,0.492]
[1764573427672,0.002,2829.8,2829.5,0.492]
[1764573428762,4.40185932,2829.9,2829.5,0.492]
[1764573428967,0.2558,2829.6,2829.1,3.72947606]
[1764573429188,0.2558,2829.6,2829.2,3.90750273]
[1764573429367,4.39955932,2829.9,2829.2,7.8979708]
[1764573430686,7.93330735,2829.9,2829.2,4.36340273]
[1764573431002,7.45150735,2829.9,2829.2,4.36340273]
[1764573431208,0.4841,2829.8,2829.2,4.36340273]
[1764573431582,0.4841,2829.8,2829.3,0.80929224]
[1764573431972,4.0179242,2829.8,2829.3,4.34363631]
[1764573432202,4.0179242,2829.8,2829.3,4.79953631]
[1764573433211,0.4841,2829.8,2829.3,4.79953631]
[1764573433420,0.002,2830.1,2829.7,0.492]
[1764573433569,0.225,2830.1,2829.8,0.492]
[1764573433913,0.002,2830.1,2830.0,0.492]
[1764573434272,0.002,2830.1,2830.0,0.9479]
[1764573434588,0.002,2830.1,2830.0,4.0255689]
[1764573434787,0.002,2830.1,2830.0,4.4814689]
[1764573435601,0.002,2830.1,2830.0,5.2829944]
[1764573437566,0.2229,2830.1,2829.7,0.70602743]
[1764573437768,0.4194,2829.8,2829.1,0.8738]
[1764573438003,0.4793,2829.7,2829.2,3.53456807]
[1764573438603,0.4793,2829.7,2829.2,3.99046807]
[1764573438807,0.4793,2829.7,2829.0,0.223]
[1764573439098,0.4793,2829.7,2829.0,1.04796398]
[1764573440687,0.225,2830.1,2829.6,0.4585]
[1764573440886,0.225,2830.1,2829.7,0.49383943]
[1764573441390,0.4861,2830.1,2829.7,0.49383943]
[1764573441605,0.002,2829.8,2829.7,0.49123943]
[1764573441999,0.002,2829.8,2829.7,0.94973943]
[1764573442611,0.002,2829.8,2829.7,4.48368295]
[1764573442910,0.002,2829.8,2829.7,5.28545648]
[1764573443349,0.002,2829.8,2829.7,6.01105059]
[1764573443716,0.002,2829.8,2829.7,5.97571116]
[1764573445492,0.002,2829.8,2829.7,9.7770653]
[1764573445693,0.002,2829.8,2829.7,9.74172587]
[1764573446033,0.002,2829.8,2829.7,10.14722987]
[1764573448501,0.002,2829.8,2829.7,9.28582587]
[1764573448705,0.002,2829.8,2829.7,6.20131116]
[1764573449019,0.002,2829.8,2829.7,7.20131116]
[1764573451320,0.4834,2829.8,2829.7,6.06131116]
[1764573451543,0.002,2829.8,2829.7,5.82955648]
[1764573451824,0.002,2829.8,2829.7,11.1851693]
[1764573452122,0.002,2829.8,2829.7,11.14982987]
[1764573453513,0.002,2829.8,2829.7,10.96732587]
[1764573458839,0.002,2829.8,2829.7,11.37282987]
[1764573476267,0.002,2829.8,2829.7,10.18873576]
[1764573476435,0.9726,2829.8,2829.7,9.32473176]
[1764573476859,0.4948,2829.8,2829.7,9.32473176]
[1764573477028,0.4948,2829.8,2829.7,10.05032587]
[1764573477239,0.9726,2829.8,2829.1,3.53459476]
[1764573477474,0.4928,2829.2,2829.1,3.53459476]
[1764573477870,0.9706,2829.2,2829.1,3.53459476]
[1764573478249,0.9706,2829.2,2829.1,0.224]
[1764573480463,0.4778,2829.6,2829.1,7.29338602]
[1764573480644,0.4778,2829.6,2829.2,0.03534568]
[1764573481345,0.4928,2829.3,2829.2,0.03534568]
[1764573481960,0.4928,2829.3,2829.2,0.76093979]
[1764573482146,0.4778,2829.7,2829.2,1.95241296]
[1764573482674,0.4778,2829.7,2829.3,10.60332942]
[1764573483248,0.4928,2829.4,2829.3,4.26003725]
[1764573483886,0.4928,2829.4,2829.3,4.29538168]
[1764573484365,0.4928,2829.4,2829.3,4.26003725]
[1764573484572,0.4928,2829.4,2829.3,6.05865246]
[1764573485676,0.9706,2829.4,2829.3,4.26003725]
[1764573486343,0.4928,2829.4,2829.3,4.26003725]
[1764573486749,0.4778,2829.7,2829.3,11.32892353]
[1764573487153,0.4778,2829.7,2829.4,0.03534318]
[1764573487352,0.002,2829.8,2829.5,0.224]
[1764573487604,0.002,2829.8,2829.6,0.03534068]
[1764573487605,0.4798,2829.8,2829.6,0.03534068]
[1764573487756,0.4798,2829.8,2829.5,0.224]
[1764573487961,0.4798,2829.8,2829.5,1.37929235]
[1764573490200,0.4798,2829.8,2829.1,3.53457309]
[1764573490201,0.4928,2829.6,2829.1,3.53457309]
[1764573490497,4.01363243,2829.8,2829.0,0.001]
[1764573490498,0.4928,2829.2,2829.0,0.001]
[1764573490667,0.3738,2829.1,2829.0,0.001]
[1764573491050,0.8516,2829.1,2829.0,0.001]
[1764573494386,1.64366636,2829.1,2829.0,0.001]
[1764573494587,0.8516,2829.1,2829.0,0.001]
[1764573503593,0.3738,2829.1,2829.0,0.001]
[1764573504162,0.8461,2829.1,2829.0,0.001]
[1764573505072,0.7961,2829.1,2829.0,0.001]
[1764573507691,0.002,2829.8,2829.0,0.4888]
[1764573507903,0.4689,2829.6,2829.0,0.4888]
[1764573508098,0.4689,2829.6,2829.1,0.1029]
[1764573508399,0.4689,2829.6,2829.2,0.65977147]
[1764573508895,0.4596,2829.3,2829.0,3.76701471]
[1764573509093,0.4689,2829.6,2829.1,0.224]
[1764573509790,0.4689,2829.6,2829.2,7.06913614]
[1764573510177,0.4689,2829.6,2829.3,0.224]
[1764573510861,0.4596,2829.4,2829.3,0.224]
[1764573511264,0.9285,2829.4,2829.3,0.224]
[1764573511468,0.4596,2829.4,2829.3,0.95331361]
[1764573511873,0.4596,2829.4,2829.3,4.48775675]